Cogmind - Beta 14 @@@ ROGUE MODE // 2025.03.30 @ 01:26:58 Player: Seven ate you Result: Self-destructed Performance ------------- Evolutions (1) 500 Regions Visited (2) 400 Robots Destroyed (33) 165 Value Destroyed (443) 443 Prototype IDs (0) 0 Alien Tech Used (0) 0 Bonus (0) 0 TOTAL SCORE: 1508 Bonus ------- None Cogmind --------- Core Integrity 377/400 Matter 246/300 Energy 265/265 System Corruption 0% Temperature Cool (0) Movement Treading (240) Ox1 Location -9/Materials Parts ------- > --- POWER (1) -------- Improved Ion Engine > --- PROPULSION (2) --- Improved Treads Improved Treads > --- UTILITY (4) ------ High-capacity Storage Unit Structural Scanner Improved Terrain Scanner Seismic Detector > --- WEAPON (2) ------- Heavy Assault Rifle Heavy Assault Rifle > --- INVENTORY (20) --- Ion Engine Improved Ion Engine Improved Ion Engine Improved Ion Engine Light Treads Light Treads Improved Treads Improved Treads Flight Unit Small Storage Unit Hacking Suite Assault Rifle Assault Rifle Light Assault Rifle Light Assault Rifle Grenade Launcher Peak State ------------ > --- POWER ------------ Improved Ion Engine > --- PROPULSION ------- Improved Treads Improved Treads > --- UTILITY ---------- High-capacity Storage Unit Structural Scanner Improved Terrain Scanner Seismic Detector > --- WEAPON ----------- Heavy Assault Rifle Heavy Assault Rifle > --- INVENTORY -------- Ion Engine Improved Ion Engine Improved Ion Engine Improved Ion Engine Light Treads Light Treads Improved Treads Improved Treads Flight Unit Small Storage Unit Hacking Suite Assault Rifle Assault Rifle Light Assault Rifle Light Assault Rifle Grenade Launcher [Rating: 18] Favorites ----------- Power Ion Engine Engine Ion Engine Propulsion Improved Treads Treads Improved Treads Utility High-capacity Storage Unit Device Seismic Detector Storage High-capacity Storage Unit Weapon Assault Rifle Ballistic Gun Assault Rifle Launcher Grenade Launcher Build | -11 -10 -9 ------- Run | Yrd Mat Mat Slots Evolved 2 | . . 2 Power . | . . . Propulsion . | . . . Utility 2 | . . 2 Weapon . | . . . Parts Attached 24 | 10 10 4 Power 2 | 1 1 . Engine 2 | 1 1 . Core . | . . . Reactor . | . . . Propulsion 6 | 4 2 . Treads 6 | 4 2 . Leg . | . . . Wheel . | . . . Hover . | . . . Flight . | . . . Utility 8 | 3 3 2 Device 6 | 2 2 2 Storage 2 | 1 1 . Processor . | . . . Hackware . | . . . Protection . | . . . Artifact . | . . . Weapon 8 | 2 4 2 Energy Gun . | . . . Energy Cannon . | . . . Ballistic Gun 6 | 2 2 2 Ballistic Cannon . | . . . Launcher 2 | . 2 . Special Weapon . | . . . Impact Weapon . | . . . Slashing Weapon . | . . . Piercing Weapon . | . . . Special Melee Weapon . | . . . Unidentified Prototypes . | . . . Parts Lost . | . . . Power . | . . . Propulsion . | . . . Utility . | . . . Weapon . | . . . Highest Loss Streak . | . . . To Critical Strikes . | . . . Average Slot Usage (%) 97 | . 100 89 Engine 13 | . 14 11 Treads 26 | . 28 22 Device 15 | . 14 22 Storage 13 | . 14 11 Ballistic Gun 26 | . 27 22 Peak Build Rating 18 | 7 12 18 Average Rating 9 | 5 9 15 On Entrance 6 | . 6 12 Naked Turns . | . . . Heaviest Build 56 | 15 53 56 Greatest Support 46 | 40 46 46 Greatest Overweight (x) 4 | 4 1 1 Average Overweight (x) 1 | 1 . 1 Largest Inventory Capacity 20 | 8 20 20 Average Capacity 17 | 7 19 20 Most Carried 18 | 5 16 18 Average Carried 9 | 2 10 16 Final Capacity 20 | 8 20 20 Final Carried 16 | 3 16 16 Class Distribution -------------------- 92% | Mutant 7% | Scavenger-Mutant Dominant Class ---------------- Mutant | -10/Materials Scavenger-Mutant | -9/Materials Resources | -11 -10 -9 ----------- Run | Yrd Mat Mat Matter Collected 992 | 382 504 106 Remotely . | . . . Salvage Created 812 | 167 445 200 Parts 63 | 17 32 14 Haulers Intercepted 1 | . 1 . Recyclers Shooed 3 | 1 1 1 Parts Field Recycled . | . . . Retrieved Matter . | . . . Parts Self-Destructed . | . . . Prevented . | . . . Kills | -11 -10 -9 ------- Run | Yrd Mat Mat Combat Hostiles Destroyed 15 | . 11 4 Guns 11 | . 7 4 AOE 4 | . 4 . Classes Destroyed 10 | 2 6 2 Worker 5 | . 5 . Builder 1 | . 1 . Tunneler 6 | 6 . . Hauler 1 | . 1 . Recycler 3 | 1 2 . Operator 1 | . 1 . Watcher 1 | . . 1 Swarmer 8 | . 8 . Grunt 6 | . 3 3 Sentry 1 | . . 1 Best Kill Streak 9 | 2 9 2 Combat Bots Only 3 | . 3 2 Max Kills in Single Turn 4 | 1 4 1 Gunslinging . | . . . Exploded 2 | . 2 . Melee . | . . . Uniques/NPCs Destroyed . | . . . Combat | -11 -10 -9 -------- Run | Yrd Mat Mat Hostile Shots Fired 105 | . 90 15 Missed 33 | . 26 7 Damage Taken 677 | . 591 86 Core 106 | . 83 23 Absorbed by Shields . | . . . Core Remaining (%) 83 | 100 66 . Volleys Fired 99 | 20 59 20 Largest 2 | 2 2 2 Hottest 46 | 40 40 46 Shots Fired 193 | 40 113 40 Gun 188 | 40 108 40 Cannon . | . . . Launcher 5 | . 5 . Special . | . . . Kinetic 188 | 40 108 40 Thermal . | . . . Explosive 5 | . 5 . Electromagnetic . | . . . Robot Hit Streak 10 | 5 10 5 Robot Miss Streak 5 | 3 5 4 Penetration Max . | . . . Secondary Targets . | . . . Shots Hit Robots 103 | 21 62 20 Core Hits 46 | 8 30 8 Critical Kills . | . . . Critical Parts Destroyed 1 | . 1 . Critical Strikes 1 | . 1 . Destroy 1 | . 1 . Melee Attacks . | . . . Impact . | . . . Slashing . | . . . Piercing . | . . . Sneak Attacks . | . . . Combat Hostiles . | . . . Follow-up Attacks . | . . . Damage Inflicted 1679 | 265 1107 307 Guns 1333 | 265 761 307 Cannons . | . . . Explosions 346 | . 346 . Melee . | . . . Ramming . | . . . Kinetic 1333 | 265 761 307 Thermal . | . . . Explosive 346 | . 346 . Electromagnetic . | . . . Impact . | . . . Slashing . | . . . Piercing . | . . . Highest Corruption 2 | . 2 . Average Corruption 1 | . 1 . Corruption Purged . | . . . Corruption Blocked . | . . . Effects 4 | . 4 . Matter Fused 2 | . 2 . Energy Discharges 1 | . 1 . Alerts 1 | . 1 . Overload Shots . | . . . Overflow Damage 38 | . 38 . Projectiles . | . . . Explosions 38 | . 38 . Melee . | . . . Knockbacks . | . . . Impact . | . . . Kinetic . | . . . Secondary . | . . . Self-Inflicted Damage 25 | . 25 . Shots 1 | . 1 . Rammed . | . . . Targets Rammed . | . . . Kicked . | . . . Crushed . | . . . Highest Temperature 4 | . 4 . Average Temperature 1 | . 1 . Received Heat Transfer 108 | . 66 42 Siege Activations . | . . . Robots Corrupted . | . . . Combat Hostiles . | . . . Parts Fried . | . . . Impact Corruptions . | . . . Robots Melted . | . . . Combat Hostiles . | . . . Parts Melted . | . . . Heat Transferred . | . . . Parts Sabotaged . | . . . Parts Stolen . | . . . Parts Stripped . | . . . Power Chain Reactions . | . . . Alert | -11 -10 -9 ------- Run | Yrd Mat Mat Peak Influence 266 | 35 266 169 Initial 57 | . . 57 Average 108 | 15 142 97 Maximum Alert Level 1 | . 1 . Low Security (%) 68 | 100 51 100 Level 1 31 | . 48 . Level 2 . | . . . Level 3 . | . . . Level 4 . | . . . Level 5 . | . . . High Security . | . . . Max Security . | . . . Squads Dispatched 1 | . 1 . Investigation . | . . . Extermination . | . . . Reinforcement 1 | . 1 . Assault . | . . . Garrison . | . . . Intercept . | . . . Searches Triggered . | . . . Construction Impeded . | . . . Haulers Reinforced . | . . . Active Scanning Responses . | . . . Cargo Convoy Interrupts . | . . . Stealth | -11 -10 -9 --------- Run | Yrd Mat Mat Distress Signals 3 | . 1 2 Communications Jammed . | . . . Distress Signals . | . . . Times Spotted 36 | . 29 7 Peak Tracking Total 5 | . 5 2 Tactical Retreats 7 | . 6 1 Traps | -11 -10 -9 ------- Run | Yrd Mat Mat Traps Triggered 3 | . 3 . Indirectly . | . . . Trap Hack Attempts . | . . . Triggered . | . . . Disarmed . | . . . Reprogrammed . | . . . Reused . | . . . Traps Extracted . | . . . Installed . | . . . Triggered . | . . . Machines | -11 -10 -9 ---------- Run | Yrd Mat Mat Machines Disabled 1 | . 1 . Max in Single Turn 1 | . 1 . Machines Repaired . | . . . Machines Dismantled . | . . . Machines Sabotaged . | . . . Overloaded Fab Kills . | . . . Hacking | -11 -10 -9 --------- Run | Yrd Mat Mat Machines Accessed . | . . . Terminals . | . . . Fabricators . | . . . Repair Stations . | . . . Recycling Units . | . . . Scanalyzers . | . . . Garrison Access . | . . . Total Hacks . | . . . Successful . | . . . Failed . | . . . Catastrophic . | . . . Database Lockouts . | . . . Manual . | . . . Terminals . | . . . Fabricators . | . . . Repair Stations . | . . . Recycling Units . | . . . Scanalyzers . | . . . Garrison Access . | . . . Terminal Hacks . | . . . Fabricator Hacks . | . . . Repair Station Hacks . | . . . Recycling Unit Hacks . | . . . Scanalyzer . | . . . Garrison Access Hacks . | . . . Unauthorized Hacks . | . . . Terminals . | . . . Fabricators . | . . . Repair Stations . | . . . Recycling Units . | . . . Scanalyzers . | . . . Garrison Access . | . . . Data Cores Recovered . | . . . Used . | . . . Hacking Detections . | . . . Full Trace Events . | . . . Feedback Events . | . . . Feedback Blocked . | . . . Robot Schematics Acquired . | . . . Robots Built . | . . . Authchips . | . . . Time . | . . . Total Robot Build Rating . | . . . Part Schematics Acquired . | . . . Parts Built . | . . . Authchips . | . . . Time . | . . . Total Part Build Rating . | . . . Parts Repaired . | . . . Time . | . . . Parts Recycled . | . . . Recycled Matter . | . . . Retrieved Matter . | . . . Retrieved Components . | . . . Parts Scanalyzed . | . . . Part Schematics Acquired . | . . . Parts Damaged . | . . . Bothacking | -11 -10 -9 ------------ Run | Yrd Mat Mat Used RIF Installer . | . . . Robots Hacked . | . . . Non-combat . | . . . Combat . | . . . Robot Hacks Applied . | . . . Relay Couplers Released . | . . . Fabnet Peak Effective % . | . . . Robots Rewired . | . . . Allies Hacked . | . . . Hacks Repelled . | . . . Allies | -11 -10 -9 -------- Run | Yrd Mat Mat Total Allies . | . . . Largest Group . | . . . Highest-Rated Group . | . . . Highest-Rated Ally . | . . . Total Orders . | . . . Ally Attacks . | . . . Total Damage . | . . . Kills . | . . . Allies Corrupted . | . . . Allies Melted . | . . . Intel | -11 -10 -9 ------- Run | Yrd Mat Mat Robot Analysis Total . | . . . Derelict Logs Recovered . | . . . Drone Launches . | . . . Drone Recoveries . | . . . Exploration | -11 -10 -9 ------------- Run | Yrd Mat Mat Turns Passed 2031 | 443 1293 295 Spaces Moved 731 | 183 453 95 Core 105 | 105 . . Treads 626 | 78 453 95 Legs . | . . . Wheels . | . . . Hover . | . . . Flight . | . . . Fastest Speed 50 | 50 160 240 Average Speed 226 | 194 236 240 Slowest Speed 250 | 250 240 240 Overloaded Moves . | . . . Propulsion Burnouts . | . . . Robots Hopped . | . . . Cave-ins Triggered . | . . . Exploration Rate (%) 28 | 11 62 13 Regions Visited 2 Branch Regions . Pre-discovered Areas . | . . . Known Exits Taken . | . . . Unknown Exits Taken 2 | 1 1 . Scrap Searched . | . . . Spaces Dug . | . . . Terrain Destroyed 20 | . 20 . Melee . | . . . Projectile . | . . . AOE 20 | . 20 . Terrain Rammed . | . . . Walls Destroyed . | . . . Machines Disabled . | . . . Actions | -11 -10 -9 --------- Run | Yrd Mat Mat Total 913 | 232 560 121 Wait 25 | 8 17 . Move 729 | 182 452 95 Hop . | . . . Pick Up 29 | 9 18 2 Fast Attach . | . . . Attach 12 | 9 1 2 Detach 3 | 3 . . Swap 12 | 1 9 2 Drop 4 | . 4 . Fire 99 | 20 59 20 Melee . | . . . Ram . | . . . Kick . | . . . Crush . | . . . Escape Stasis . | . . . Rewire . | . . . Trap . | . . . Miscellaneous . | . . . Route ------- -11/Scrapyard -10/Materials (discovered 2 exits: [*Mat x2]) -9/Materials History --------- Turn | Location | Event 18 | -11/Scrapyard | Discovered new exit (range 15) 444 | -11/Scrapyard | Entered Materials 465 | -10/Materials | Build established: Mutant 1065 | -10/Materials | Discovered new exit (range 15) 1511 | -10/Materials | Discovered new exit (range 7) 1737 | -10/Materials | Entered another Materials area 1737 | -9/Materials | Evolved 2 slots: Utility x2 2032 | -9/Materials | Self-destructed Last Messages --------------- 01865_ R-06 Scavenger collects Lgt. Treads. 01869_ K-01 Serf collects debris. 01869_ R-06 Scavenger collects Beam Rifle. 01870_ Acquired Hvy. Assault Rifle. 01873_ R-06 Scavenger collects Imp. Ion Engine. 01876_ W-16 Scout sends out distress signal. 01915_ K-01 Serf collects debris. 01955_ G-34 Mercenary destroyed. 01982_ R-06 Scavenger collects Heat Sink. 01985_ Destroyed Com. Wheel. 01994_ G-34 Mercenary destroyed. 01997_ Acquired 41 matter. 01999_ R-06 Scavenger collects Ion Engine. 02004_ R-06 Scavenger collects Aluminum Leg. 02005_ G-34 Mercenary destroyed. 02008_ R-06 Scavenger collects Heat Sink. 02014_ K-01 Serf collects debris. 02015_ Acquired 41 matter. 02018_ K-01 Serf collects debris. 02025_ K-01 Serf cleans the Processing Tank. Map ----- +----------------------------------------------------+ | ?????????????????????????????????????????????????? | | ?????????????????????????????????????????????????? | | ?????????????????????????????????????????????????? | | ?????????????????????????????????????????????????? | | ?????????????????????????????????????????????????? | | ?????????????????????????????????????????????????? | | ?????????????????????????????????????????????????? | | ?????????????????????????????????????????????????? | | ?????????????????????????????????????????????????? | | ?????????????????????????????????????????????????? | | ?????????????????????????????????????????????????? | | ?????????????????????????????????????????????????? | | ?????????????????????????????????????????????????? | | ?????????????????????????????????????????????????? | | ????????????## # ???????????????????????? | | ????????????## #########?????????#?????????????? | | ???????#????## # ##???????????????????????? | | ????????????## # ##????#??????????????????? | | ????????????## + ##????##?????????????????? | | ????????????## # ##???????????????????????? | | ??????#?????## # ##??????#??T?????????????? | | ???????????### # ##########???????????????? | | ????????????## ####+#############??????????????? | | ???????????? # ## [ ##???????????????? | | ???????????? # ## w ##???????????????? | | ???????????? + ## """""@""""" ##??? "?"????????? | | ???????????? # ## """"" """""k###??????????????? | | ??????????? # ## """"" """"" ##?? ????????????? | | ???????????### ## ##???????????????? | | ?????????## ###+#####+######??????#????????? | | #######????## ##=######?#???"?????????? | | ############# ## ######## # ??????????? | | ## ######## ] ##=######## # ??? ??????? | | + % % #### ##*[ + ??????????? | | ## ################# ##! # ??????????? | | ## ######### ?? ## # ?? ???????? | | ## ##??????????????? ## ##??????????? | | ## ##?????????? ???? ##%###########??????????? | | ## ##??????????????? ## ###########??????????? | | ##??????????????? ## ##?????#?????????????? | | ##??????????????? # ##????????#??????????? | | ##??????????? ?? ? # ##???????????????????? | | #+#####????????????? ??T # ##????? ?????????????? | | #???????????????? # ##???????????????????? | | ??????????????????????? # ##???????????????????? | | ??????????????????#??????## #?? ???????????????? | | ?????????????????????????## ?????????????????????? | | ??????????????????????????? ?????????????????????? | | ??????????????????????????? ?????????????????????? | | ??????????????????????????? ?????????????????????? | +----------------------------------------------------+ Best States ------------- Heat Dissipation 28 Energy Generation 12 Energy Capacity 265 Matter Stores 300 Matter Capacity 300 Sight Range 16 Terrain Scan Range 16 Terrain Scan Density 10 Evasion (%) 50 Recoil Reduction 2 Item Schematics ----------------- None Robot Schematics ------------------ None Fabricated ------------ Nothing Alien Tech Used ----------------- None Achievements -------------- None Challenges ------------ None Game ------ Seed PlasmaFlyingRegenerator Manual? 0 Play Time 00:15:41 Cumulative 5.8 hours Start 2025.03.30 @ 01:11:57 End 2025.03.30 @ 01:26:58 Sessions 1 Manual Loads 0 Difficulty Rogue Special Mode None Game No. 17 Rogue 17 Adventurer 0 Explorer 0 Win Type - Total 0 Types 0/0/0/0/0/0/0/0/0 Lore% 0 Gallery% 9 Achievement% 10 Wizard Run 0 Options --------- Layout 0 ASCII 0 Keyboard 0 Movement Mouse Keybinds 0 Fullscreen 2 Font 24/Smallcaps Map View 76x50 Zoom Use 0% Tactical HUD 1 Map Filters NONE Filters NONE Steam 1 RUN: 83c503a6-43cb-4cd8-a03d-51ea30d7e755